fUSD/lending_fUSD_20250612
["ID","MTS","AMOUNT","RATE_DAILY","PERIOD"]
[365465955,1749686531664,202.0,0.00017349,2]
[365465958,1749686670769,150.0,0.00023475,120]
[365465959,1749686701009,3130.3,0.00016,10]
[365465960,1749686731592,150.0,0.00024547,120]
[365465961,1749686796135,-234.49391287,0.00018075,2]
[365465962,1749686796157,-150.0,0.00018096,7]
[365465963,1749686796178,-234.49391287,0.00018132,2]
[365465964,1749686796199,-169.99,0.00018147,2]
[365465965,1749686796220,-661.34,0.00018175,2]
[365465966,1749686796241,-234.49391287,0.00018189,2]
[365465967,1749686796261,-174.21786408,0.00018286,2]
[365465968,1749686796282,-250.0,0.00018289,2]
[365465969,1749686796303,-666.0,0.00018293,2]
[365465970,1749686796325,-305.33,0.00018312,2]
[365465971,1749686796348,-300.66,0.00018312,2]
[365465972,1749686796369,-327.56,0.00018386,2]
[365465973,1749686796392,-300.98,0.00018488,2]
[365465974,1749686796416,-304.01,0.00018488,2]
[365465975,1749686796441,-202.0,0.00018534,3]
[365465976,1749686796463,-166.48,0.00018774,2]
[365465977,1749686796485,-214.94876975,0.00019,2]
[365465978,1749686827273,-35.05123025,0.00019,2]
[365465979,1749686827295,-207.4,0.00019016,2]
[365465980,1749686827317,-1114.83797283,0.00019026,2]
[365465981,1749686837099,-305.66,0.00019017,2]
[365465982,1749686837121,-85.16202717,0.00019026,2]
[365465983,1749686837143,-300.0,0.00019026,2]
[365465984,1749686837165,-181.0,0.00019026,2]
[365465985,1749686837187,-302.46,0.00019027,2]
[365465986,1749686837210,-155.60791315,0.00019027,2]
[365465987,1749686850617,150.0,0.00024223,120]
[365465988,1749686863410,1257.98,0.00016349,2]
[365465989,1749687006383,222.0,0.00024657,120]
[365465991,1749687032759,-520.58,0.00018186,2]
[365465992,1749687032769,-163.78,0.00018212,2]
[365465993,1749687032778,-609.27,0.00018252,2]
[365465994,1749687032788,-200.0,0.00018258,2]
[365465995,1749687032799,-302.4,0.00018564,2]
[365465996,1749687032809,-1257.98,0.00018612,2]
[365465997,1749687032819,-302.0,0.00018613,2]
[365465998,1749687032828,-202.0,0.00018719,2]
[365465999,1749687032838,-207.4,0.00019015,2]
[365466000,1749687032848,-304.49,0.00019015,2]
[365466001,1749687032859,-304.13,0.00019019,2]
[365466002,1749687032868,-300.76,0.00019019,2]
[365466003,1749687032879,-89.04167815,0.00019026,2]
[365466004,1749687032891,-1110.95832185,0.00019026,2]
[365466006,1749687032901,-300.0,0.00019026,2]
[365466008,1749687032910,-149.46208685,0.00019027,2]
[365466011,1749687032920,-304.68,0.00019027,2]
[365466012,1749687032930,-303.74,0.00019027,2]
[365466015,1749687032939,-500.0,0.00019027,2]
[365466017,1749687032949,-500.0,0.00019027,2]
[365466018,1749687032958,-575.0,0.00019027,2]
[365466021,1749687032968,-713.48124469,0.00019078,2]
[365466024,1749687032977,-1916.50092912,0.00019078,2]
[365466027,1749687032987,-170.52428596,0.00019078,2]
[365466030,1749687032996,-168.03527658,0.00019078,2]
[365466033,1749687033005,-454.8462,0.00019078,2]
[365466036,1749687033015,-9567.40819922,0.00019111,2]
[365466039,1749687033025,-500.0,0.00019124,2]
[365466040,1749687033034,-170.52428596,0.00019158,2]
[365466042,1749687033044,-1916.50092908,0.00019158,2]
[365466045,1749687033053,-151.0,0.00019165,2]
[365466047,1749687033062,-156.0,0.00019165,2]
[365466048,1749687033071,-395.32,0.00019168,2]
[365466050,1749687033081,-188.23626958,0.00019177,2]
[365466052,1749687033090,-500.0,0.00019177,2]
[365466054,1749687033099,-500.0,0.00019177,2]
[365466057,1749687033110,-500.0,0.00019177,2]
[365466058,1749687033119,-500.0,0.00019177,2]
[365466060,1749687033128,-500.0,0.00019177,2]
[365466062,1749687033138,-500.0,0.00019177,2]
[365466064,1749687033148,-500.0,0.00019177,2]
[365466066,1749687033158,-500.0,0.00019177,2]
[365466068,1749687033168,-500.0,0.00019177,2]
[365466070,1749687033178,-375.56458505,0.00019177,2]
[365466072,1749687033188,-500.0,0.00019177,2]
[365466075,1749687033198,-500.0,0.00019177,2]
[365466077,1749687033208,-59.64167832,0.00019177,2]
[365466079,1749687033221,-240.35832168,0.00019177,2]
[365466081,1749687033230,-500.0,0.00019177,2]
[365466082,1749687033240,-500.0,0.00019177,2]
[365466083,1749687033249,-500.0,0.00019177,2]
[365466084,1749687033260,-500.0,0.00019177,2]
[365466085,1749687033269,-500.0,0.00019177,2]
[365466086,1749687033279,-305.03940483,0.00019177,2]
[365466087,1749687033289,-500.0,0.00019177,2]
[365466088,1749687033299,-500.0,0.00019177,2]
[365466089,1749687033309,-500.0,0.00019177,2]
[365466090,1749687033319,-500.0,0.00019177,2]
[365466091,1749687033329,-500.0,0.00019177,2]
[365466092,1749687033338,-500.0,0.00019177,2]
[365466093,1749687033348,-500.0,0.00019177,2]
[365466094,1749687033360,-500.0,0.00019177,2]
[365466095,1749687033370,-500.0,0.00019177,2]
[365466096,1749687033380,-35.88636653,0.00019177,2]
[365466097,1749687033420,-464.11363347,0.00019177,2]
[365466098,1749687033430,-500.0,0.00019177,2]
[365466099,1749687033444,-500.0,0.00019177,2]
[365466100,1749687033458,-490.0,0.00019178,2]
[365466101,1749687033467,-395.71976489,0.00019178,2]
[365466102,1749687033476,-598.16650091,0.00019178,2]
[365466103,1749687033486,-806.678487,0.00019178,2]
[365466104,1749687033495,-490.0,0.00019178,2]
[365466105,1749687033504,-490.0,0.00019178,2]
[365466106,1749687033513,-490.0,0.00019178,2]
[365466107,1749687033523,-1569.778467,0.00019178,2]
[365466108,1749687033532,-490.0,0.00019178,2]
[365466109,1749687033541,-490.0,0.00019178,2]
[365466110,1749687033551,-163.01285,0.00019178,2]
[365466111,1749687033560,-490.0,0.00019178,2]
[365466112,1749687033569,-581.8,0.00019178,2]
[365466113,1749687033578,-490.0,0.00019178,2]
[365466114,1749687033588,-453.12598187,0.00019178,2]
[365466115,1749687033597,-470.0,0.00019178,2]
[365466116,1749687033606,-490.0,0.00019178,2]
[365466117,1749687033617,-490.0,0.00019178,2]
[365466118,1749687033626,-490.0,0.00019178,2]
[365466119,1749687033636,-300.0,0.00019178,2]
[365466120,1749687033645,-490.0,0.00019178,2]
[365466121,1749687033655,-490.0,0.00019178,2]
[365466122,1749687033664,-464.85,0.00019178,2]
[365466123,1749687033674,-490.0,0.00019178,2]
[365466124,1749687033683,-490.0,0.00019178,2]
[365466125,1749687033692,-480.0,0.00019178,2]
[365466126,1749687033702,-490.0,0.00019178,2]
[365466127,1749687033711,-400.0,0.00019178,2]
[365466128,1749687033720,-470.0,0.00019178,2]
[365466129,1749687033730,-490.0,0.00019178,2]
[365466130,1749687033740,-390.24951708,0.00019178,2]
[365466131,1749687033749,-458.7359734,0.00019178,2]
[365466132,1749687033759,-573.34744731,0.00019178,2]
[365466133,1749687033769,-490.0,0.00019178,2]
[365466134,1749687033778,-490.0,0.00019178,2]
[365466135,1749687033788,-490.0,0.00019178,2]
[365466136,1749687033800,-490.0,0.00019178,2]
[365466137,1749687033809,-490.0,0.00019178,2]
[365466138,1749687033818,-412.08416639,0.00019178,2]
[365466139,1749687033827,-490.0,0.00019178,2]
[365466140,1749687033837,-490.0,0.00019178,2]
[365466141,1749687033846,-490.0,0.00019178,2]
[365466142,1749687033855,-490.0,0.00019178,2]
[365466143,1749687033866,-490.0,0.00019178,2]
[365466144,1749687033875,-949.31,0.00019178,2]
[365466145,1749687033885,-490.0,0.00019178,2]
[365466146,1749687033894,-614.15,0.00019178,2]
[365466147,1749687033903,-256.85057047,0.00019178,2]
[365466148,1749687033913,-549.53,0.00019178,2]
[365466149,1749687033922,-490.0,0.00019178,2]
[365466150,1749687033931,-917.11,0.00019178,2]
[365466151,1749687033940,-490.45,0.00019178,2]
[365466152,1749687033950,-490.0,0.00019178,2]
[365466153,1749687033960,-490.0,0.00019178,2]
[365466154,1749687033971,-490.0,0.00019178,2]
[365466155,1749687033980,-490.0,0.00019178,2]
[365466156,1749687033989,-591.6,0.00019178,2]
[365466157,1749687033999,-490.0,0.00019178,2]
[365466158,1749687034008,-490.0,0.00019178,2]
[365466159,1749687034018,-490.0,0.00019178,2]
[365466160,1749687034027,-490.0,0.00019178,2]
[365466161,1749687034037,-490.0,0.00019178,2]
[365466162,1749687034046,-480.0,0.00019178,2]
[365466163,1749687034056,-490.0,0.00019178,2]
[365466164,1749687034065,-340.65785855,0.00019178,2]
[365466165,1749687034088,-149.34214145,0.00019178,2]
[365466166,1749687034098,-490.0,0.00019178,2]
[365466167,1749687034108,-490.0,0.00019178,2]
[365466168,1749687034118,-258.65386205,0.00019178,2]
[365466169,1749687034138,-231.34613795,0.00019178,2]
[365466170,1749687034148,-490.0,0.00019178,2]
[365466171,1749687034158,-490.0,0.00019178,2]
[365466172,1749687034168,-490.0,0.00019178,2]
[365466173,1749687034177,-490.0,0.00019178,2]
[365466174,1749687034187,-490.0,0.00019178,2]
[365466175,1749687034197,-490.0,0.00019178,2]
[365466176,1749687034207,-762.84,0.00019178,2]
[365466177,1749687034216,-297.51006684,0.00019178,2]
[365466186,1749687040569,-158.03368557,0.00019078,2]
[365466187,1749687040579,-158.03368554,0.00019103,2]
[365466188,1749687040589,-192.48993316,0.00019178,2]
[365466189,1749687040599,-798.91,0.00019178,2]
[365466190,1749687040609,-490.0,0.00019178,2]
[365466191,1749687040620,-702.53269573,0.00019178,2]
[365466192,1749687040777,-87.98730427,0.00019178,2]
[365466193,1749687040786,-490.0,0.00019178,2]
[365466194,1749687040797,-330.0,0.00019178,2]
[365466195,1749687040809,-490.0,0.00019178,2]
[365466196,1749687040819,-490.0,0.00019178,2]
[365466197,1749687040829,-1288.69,0.00019178,2]
[365466198,1749687040839,-490.0,0.00019178,2]
[365466199,1749687040850,-590.58,0.00019178,2]
[365466200,1749687040859,-490.0,0.00019178,2]
[365466201,1749687040870,-803.72,0.00019178,2]
[365466202,1749687040881,-490.0,0.00019178,2]
[365466203,1749687040891,-490.0,0.00019178,2]
[365466204,1749687040901,-559.32,0.00019178,2]
[365466205,1749687040910,-1069.86,0.00019178,2]
[365466206,1749687040921,-59.09549573,0.00019178,2]
[365466207,1749687040934,-430.90450427,0.00019178,2]
[365466208,1749687040944,-242.84261399,0.00019178,2]
[365466209,1749687040953,-490.0,0.00019178,2]
[365466210,1749687040962,-1378.23,0.00019178,2]
[365466211,1749687040972,-490.0,0.00019178,2]
[365466212,1749687040981,-490.0,0.00019178,2]
[365466213,1749687040991,-910.81,0.00019178,2]
[365466214,1749687041001,-1051.16,0.00019178,2]
[365466215,1749687041010,-878.93,0.00019178,2]
[365466216,1749687041020,-490.0,0.00019178,2]
[365466217,1749687041030,-490.0,0.00019178,2]
[365466218,1749687041041,-1049.4,0.00019178,2]
[365466219,1749687041050,-1392.24,0.00019178,2]
[365466220,1749687041060,-490.0,0.00019178,2]
[365466221,1749687041070,-479.67108896,0.00019178,2]
[365466226,1749687043322,-200.0,0.00018719,2]
[365466227,1749687043331,-667.19891104,0.00019178,2]
[365466228,1749687043341,-490.0,0.00019178,2]
[365466229,1749687043350,-538.53663778,0.00019178,2]
[365466230,1749687043527,-205.38336222,0.00019178,2]
[365466231,1749687043535,-490.0,0.00019178,2]
[365466232,1749687043544,-490.0,0.00019178,2]
[365466233,1749687043554,-490.0,0.00019178,2]
[365466234,1749687043562,-1985.27,0.00019178,2]
[365466235,1749687043571,-490.0,0.00019178,2]
[365466236,1749687043581,-490.0,0.00019178,2]
[365466237,1749687043589,-490.0,0.00019178,2]
[365466238,1749687043599,-158.82890799,0.00019178,2]
[365466239,1749687043611,-832.39109201,0.00019178,2]
[365466240,1749687043620,-382.92005279,0.00019178,2]
[365466241,1749687043646,-107.07994721,0.00019178,2]
[365466242,1749687043655,-205.21027801,0.00019178,2]
[365466243,1749687043667,-699.29972199,0.00019178,2]
[365466244,1749687043677,-708.92,0.00019178,2]
[365466245,1749687043687,-490.0,0.00019178,2]
[365466246,1749687043696,-490.0,0.00019178,2]
[365466247,1749687043706,-1528.27,0.00019178,2]
[365466248,1749687043715,-490.0,0.00019178,2]
[365466249,1749687043725,-152.611024,0.00019178,2]
[365466250,1749687043734,-490.0,0.00019178,2]
[365466251,1749687043744,-490.0,0.00019178,2]
[365466252,1749687043753,-490.0,0.00019178,2]
[365466253,1749687043762,-490.0,0.00019178,2]
[365466254,1749687043771,-1226.92,0.00019178,2]
[365466255,1749687043780,-470.0,0.00019178,2]
[365466256,1749687043789,-490.0,0.00019178,2]
[365466257,1749687043799,-451.02986098,0.00019178,2]
[365466258,1749687043809,-490.0,0.00019178,2]
[365466259,1749687043819,-314.15278308,0.00019178,2]
[365466261,1749687046231,-158.03368554,0.00019128,2]
[365466262,1749687046240,-165.84721692,0.00019178,2]
[365466263,1749687046250,-348.03524754,0.00019178,2]
[365466264,1749687046261,-141.96475246,0.00019178,2]
[365466265,1749687046270,-490.0,0.00019178,2]
[365466266,1749687046279,-964.77,0.00019178,2]
[365466267,1749687046289,-1025.99,0.00019178,2]
[365466268,1749687046298,-597.48459799,0.00019178,2]
[365466269,1749687046307,-490.0,0.00019178,2]
[365466270,1749687046316,-490.0,0.00019178,2]
[365466271,1749687046325,-533.88,0.00019178,2]
[365466272,1749687046334,-490.0,0.00019178,2]
[365466273,1749687046343,-480.0,0.00019178,2]
[365466274,1749687046352,-490.0,0.00019178,2]
[365466275,1749687046361,-208.95909465,0.00019178,2]
[365466276,1749687046370,-1253.2,0.00019178,2]
[365466277,1749687046380,-490.0,0.00019178,2]
[365466278,1749687046389,-490.0,0.00019178,2]
[365466279,1749687046399,-587.81,0.00019178,2]
[365466280,1749687046408,-844.53,0.00019178,2]
[365466281,1749687046418,-490.0,0.00019178,2]
[365466282,1749687046427,-490.0,0.00019178,2]
[365466283,1749687046436,-490.0,0.00019178,2]
[365466284,1749687046446,-425.27334261,0.00019178,2]
[365466285,1749687046455,-490.0,0.00019178,2]
[365466286,1749687046465,-490.0,0.00019178,2]
[365466287,1749687046474,-490.0,0.00019178,2]
[365466288,1749687046483,-548.82185495,0.00019178,2]
[365466289,1749687046492,-490.0,0.00019178,2]
[365466290,1749687046502,-490.0,0.00019178,2]
[365466291,1749687046511,-574.46,0.00019178,2]
[365466292,1749687046521,-490.0,0.00019178,2]
[365466293,1749687046530,-490.0,0.00019178,2]
[365466294,1749687046540,-1272.06,0.00019178,2]
[365466295,1749687046549,-1181.1,0.00019178,2]
[365466296,1749687046559,-508.25,0.00019178,2]
[365466297,1749687046568,-490.0,0.00019178,2]
[365466298,1749687046578,-1019.81,0.00019178,2]
[365466299,1749687046588,-733.05,0.00019178,2]
[365466300,1749687046598,-490.0,0.00019178,2]
[365466301,1749687046607,-1642.85,0.00019178,2]
[365466302,1749687046616,-492.36948059,0.00019178,2]
[365466303,1749687046627,-490.0,0.00019178,2]
[365466304,1749687046637,-490.0,0.00019178,2]
[365466305,1749687046646,-490.0,0.00019178,2]
[365466306,1749687046656,-669.26,0.00019178,2]
[365466307,1749687046665,-268.26849159,0.00019178,2]
[365466308,1749687046675,-490.0,0.00019178,2]
[365466309,1749687046684,-490.0,0.00019178,2]
[365466310,1749687046693,-729.4,0.00019178,2]
[365466311,1749687046703,-500.0,0.00019178,2]
[365466312,1749687046712,-755.15,0.00019178,2]
[365466313,1749687046721,-200.0,0.00019178,2]
[365466314,1749687046730,-500.0,0.00019178,2]
[365466315,1749687046739,-1552.02,0.00019178,2]
[365466316,1749687046749,-500.0,0.00019178,2]
[365466317,1749687046758,-490.0,0.00019178,2]
[365466318,1749687046767,-877.6,0.00019178,2]
[365466319,1749687046777,-150.0,0.00019178,2]
[365466320,1749687046786,-1387.3,0.00019178,2]
[365466321,1749687046796,-500.0,0.00019178,2]
[365466322,1749687046807,-490.0,0.00019178,2]
[365466323,1749687046816,-859.16,0.00019178,2]
[365466324,1749687046826,-150.0,0.00019178,2]
[365466325,1749687046835,-150.0,0.00019178,2]
[365466326,1749687046845,-1334.87,0.00019178,2]
[365466327,1749687046854,-554.68,0.00019178,2]
[365466328,1749687046864,-500.0,0.00019178,2]
[365466329,1749687046873,-150.0,0.00019178,2]
[365466330,1749687046883,-490.0,0.00019178,2]
[365466331,1749687046893,-1201.7,0.00019178,2]
[365466332,1749687046902,-490.0,0.00019178,2]
[365466333,1749687046913,-490.0,0.00019178,2]
[365466334,1749687046922,-490.0,0.00019178,2]
[365466335,1749687046931,-490.0,0.00019178,2]
[365466336,1749687046941,-488.08276855,0.00019178,2]
[365466337,1749687046950,-490.0,0.00019178,2]
[365466338,1749687046959,-500.0,0.00019178,2]
[365466339,1749687046969,-490.0,0.00019178,2]
[365466340,1749687046978,-1533.99,0.00019178,2]
[365466341,1749687046987,-490.0,0.00019178,2]
[365466342,1749687046997,-490.0,0.00019178,2]
[365466343,1749687047006,-490.0,0.00019178,2]
[365466344,1749687047016,-669.06,0.00019178,2]
[365466345,1749687047025,-490.0,0.00019178,2]
[365466346,1749687047035,-490.0,0.00019178,2]
[365466347,1749687047050,-490.0,0.00019178,2]
[365466348,1749687047059,-490.0,0.00019178,2]
[365466349,1749687047068,-735.25,0.00019178,2]
[365466350,1749687047078,-200.0,0.00019178,2]
[365466351,1749687047087,-450.0,0.00019178,2]
[365466352,1749687047097,-480.0,0.00019178,2]
[365466353,1749687047106,-622.74,0.00019178,2]
[365466354,1749687047116,-490.0,0.00019178,2]
[365466355,1749687047125,-470.0,0.00019178,2]
[365466356,1749687047135,-460.0,0.00019178,2]
[365466357,1749687047144,-1012.43,0.00019178,2]
[365466358,1749687047154,-2503.92,0.00019178,2]
[365466359,1749687047164,-1165.34,0.00019178,2]
[365466360,1749687047173,-150.0,0.00019178,2]
[365466361,1749687047182,-150.0,0.00019178,2]
[365466362,1749687047192,-1034.71,0.00019178,2]
[365466363,1749687047201,-150.0,0.00019178,2]
[365466364,1749687047210,-749.82,0.00019178,2]
[365466365,1749687047219,-490.0,0.00019178,2]
[365466366,1749687047228,-490.0,0.00019178,2]
[365466367,1749687047238,-490.0,0.00019178,2]
[365466368,1749687047247,-1102.25,0.00019178,2]
[365466369,1749687047256,-799.05,0.00019178,2]
[365466370,1749687047265,-1000.0,0.00019178,2]
[365466371,1749687047275,-592.04,0.00019178,2]
[365466372,1749687047284,-490.0,0.00019178,2]
[365466373,1749687047293,-490.0,0.00019178,2]
[365466374,1749687047303,-953.33,0.00019178,2]
[365466375,1749687047312,-450.0,0.00019178,2]
[365466376,1749687047321,-470.0,0.00019178,2]
[365466377,1749687047330,-2108.58,0.00019178,2]
[365466378,1749687047340,-430.0,0.00019178,2]
[365466379,1749687047349,-939.32,0.00019178,2]
[365466380,1749687047358,-1123.61,0.00019178,2]
[365466381,1749687047368,-1640.29,0.00019178,2]
[365466382,1749687047378,-490.0,0.00019178,2]
[365466383,1749687047387,-490.0,0.00019178,2]
[365466384,1749687047397,-272.07018617,0.00019178,2]
[365466385,1749687047406,-655.16,0.00019178,2]
[365466386,1749687047416,-765.75,0.00019178,2]
[365466387,1749687047425,-1022.81,0.00019178,2]
[365466388,1749687047434,-460.0,0.00019178,2]
[365466389,1749687047444,-677.5,0.00019178,2]
[365466390,1749687047453,-601.04,0.00019178,2]
[365466391,1749687047693,-490.0,0.00019178,2]
[365466392,1749687047703,-592.47,0.00019178,2]
[365466393,1749687047712,-388.47194823,0.00019178,2]
[365466394,1749687047754,-276.48679559,0.00019178,2]
[365466395,1749687047765,-395.68920678,0.00019178,2]
[365466396,1749687047787,-446.9720494,0.00019178,2]
[365466397,1749687047800,-490.0,0.00019178,2]
[365466398,1749687047810,-490.0,0.00019178,2]
[365466399,1749687047819,-490.0,0.00019178,2]
[365466400,1749687047829,-688.28,0.00019178,2]
[365466401,1749687047839,-187.29148506,0.00019178,2]
[365466402,1749687047858,-1579.81851494,0.00019178,2]
[365466403,1749687047867,-490.0,0.00019178,2]
[365466404,1749687047880,-490.0,0.00019178,2]
[365466405,1749687047890,-490.0,0.00019178,2]
[365466406,1749687047900,-2564.48,0.00019178,2]
[365466407,1749687047909,-490.0,0.00019178,2]
[365466408,1749687047919,-470.0,0.00019178,2]
[365466409,1749687047928,-490.0,0.00019178,2]
[365466410,1749687047937,-911.97,0.00019178,2]
[365466411,1749687047946,-5078.87,0.00019178,2]
[365466412,1749687047956,-985.2,0.00019178,2]
[365466413,1749687047965,-490.0,0.00019178,2]
[365466414,1749687047974,-814.92,0.00019178,2]
[365466415,1749687047983,-490.0,0.00019178,2]
[365466416,1749687047992,-5315.99,0.00019178,2]
[365466417,1749687048002,-1346.29,0.00019178,2]
[365466418,1749687048012,-490.0,0.00019178,2]
[365466419,1749687048021,-1091.31,0.00019178,2]
[365466420,1749687048030,-490.0,0.00019178,2]
[365466421,1749687048042,-4153.63,0.00019178,2]
[365466422,1749687048052,-490.0,0.00019178,2]
[365466423,1749687048061,-192.41563519,0.00019178,2]
[365466424,1749687048070,-490.0,0.00019178,2]
[365466425,1749687048080,-1205.68,0.00019178,2]
[365466426,1749687048089,-480.0,0.00019178,2]
[365466427,1749687048100,-1047.38,0.00019178,2]
[365466428,1749687048109,-500.0,0.00019178,2]
[365466429,1749687048118,-490.0,0.00019178,2]
[365466430,1749687048128,-207.34587752,0.00019178,2]
[365466431,1749687048138,-150.0,0.00019178,2]
[365466432,1749687048147,-1030.6,0.00019178,2]
[365466433,1749687048158,-5711.15,0.00019178,2]
[365466434,1749687048167,-490.0,0.00019178,2]
[365466435,1749687048177,-150.0,0.00019178,2]
[365466436,1749687048186,-150.0,0.00019178,2]
[365466437,1749687048197,-490.0,0.00019178,2]
[365466438,1749687048206,-490.0,0.00019178,2]
[365466439,1749687048216,-490.0,0.00019178,2]
[365466440,1749687048225,-150.0,0.00019178,2]
[365466441,1749687048235,-1351.83,0.00019178,2]
[365466442,1749687048244,-480.0,0.00019178,2]
[365466443,1749687048253,-9464.15,0.00019178,2]
[365466444,1749687048262,-500.0,0.00019178,2]
[365466445,1749687048272,-490.0,0.00019178,2]
[365466446,1749687048281,-3291.9,0.00019178,2]
[365466447,1749687048290,-1014.19,0.00019178,2]
[365466448,1749687048299,-490.0,0.00019178,2]
[365466449,1749687048308,-468.19868111,0.00019178,2]
[365466450,1749687160401,500.0,0.00016384,2]
[365466451,1749687253272,202.0,0.00017719,2]
[365466452,1749687278720,1164.91717462,0.00018,2]
[365466453,1749687334302,2377.191321,0.00017,10]
[365466455,1749687532975,343.29,0.00013699,2]
[365466456,1749687611667,202.0,0.00017893,2]
[365466457,1749687849236,169.58,0.00017982,2]
[365466458,1749687881722,150.0,0.00017964,7]
[365466459,1749687943639,1139.42,0.00017947,2]
[365466460,1749688034199,163.78,0.00017938,2]
[365466461,1749688050735,150.0,0.00023905,120]
[365466462,1749688053055,1170.36,0.00016014,2]
[365466463,1749688053111,-150.0,0.00018,2]
[365466464,1749688053140,-1162.03134391,0.00018029,2]
[365466465,1749688058642,1000.0,0.00017925,2]
[365466466,1749688081979,163.0,0.0002465,120]
[365466467,1749688103397,200.0,0.000179,2]
[365466480,1749688121102,200.0,0.0002465,120]
[365466481,1749688122048,427.4013471,0.00017999,2]
[365466488,1749688157342,200.0,0.0001799,2]
[365466489,1749688170749,150.0,0.00019754,120]
[365466490,1749688175951,250.0,0.00017952,2]
[365466513,1749688232298,-738.09674122,0.00018029,2]
[365466514,1749688232313,-2679.12047094,0.00018029,2]
[365466515,1749688232601,-637.85060771,0.00018029,2]
[365466516,1749688232616,-1684.88083622,0.00018029,2]
[365466517,1749688232630,-500.0,0.00018063,3]
[365466518,1749688232641,-202.0,0.00018096,2]
[365466519,1749688232654,-314.29815519,0.00018113,2]
[365466520,1749688232707,-351.70184481,0.00018113,2]
[365466521,1749688232719,-169.29815519,0.00018137,2]
[365466522,1749688232734,-245.06184481,0.00018137,2]
[365466523,1749688232746,-70.03776974,0.00018253,2]
[365466821,1749688238187,-200.0,0.0001802,2]
[365466822,1749688238196,-100.98223026,0.00018253,2]
[365466823,1749688238206,-204.23840787,0.00018277,2]
[365466824,1749688238242,-995.76159213,0.00018277,2]
[365466825,1749688238252,-664.93840787,0.00018278,2]
[365466826,1749688238300,-505.42159213,0.00018278,2]
[365466827,1749688238310,-300.0,0.00018302,2]
[365466828,1749688238319,-167.36,0.00018303,2]
[365466829,1749688238328,-304.09,0.00018304,2]
[365466830,1749688238339,-302.32,0.00018313,2]
[365466831,1749688238349,-304.09,0.00018313,2]
[365466832,1749688238359,-303.99,0.00018345,2]
[365466833,1749688238368,-301.97,0.00018345,2]
[365466834,1749688238379,-500.0,0.00018438,2]
[365466835,1749688238389,-2019.33,0.00018449,2]
[365466836,1749688238399,-152.0,0.00018453,3]
[365466837,1749688238408,-151.0,0.00018529,2]
[365466838,1749688238418,-156.0,0.00018529,2]
[365466839,1749688238428,-207.4,0.00018529,2]
[365466840,1749688238438,-166.58,0.00018608,2]
[365466841,1749688238448,-5211.34,0.00018878,2]
[365466842,1749688238458,-208.93896068,0.000189,2]
[365466843,1749688238467,-311.68,0.00018917,2]
[365466844,1749688238476,-208.93896054,0.00018963,2]
[365466845,1749688238486,-5183.3956054,0.0001899,2]
[365466846,1749688238495,-250.0,0.00019,2]
[365466847,1749688238505,-461.31,0.0001901,2]
[365466848,1749688238514,-461.31,0.0001901,2]
[365466849,1749688238523,-461.31,0.0001901,2]
[365466850,1749688238532,-461.31,0.0001901,2]